bitfinex/quotes_SOLUSD_20250915
["timestamp","ask_amount","ask_price","bid_price","bid_amount"]
[1757923237608,0.69,238.46,238.44,37.97392719]
[1757923237805,0.69,238.46,238.44,4.19392719]
[1757923238008,0.69,238.45,238.43,4.25401714]
[1757923238302,0.72,238.47,238.44,33.78]
[1757923238506,0.03,238.47,238.44,33.78]
[1757923238815,0.69,238.46,238.43,38.03401714]
[1757923239505,0.68,238.46,238.43,38.03401714]
[1757923239707,0.68,238.45,238.43,33.84]
[1757923240210,0.68,238.45,238.43,4.2539863]
[1757923240892,0.68,238.45,238.43,0.06]
[1757923241092,0.68,238.44,238.43,0.06]
[1757923241302,14.27559401,238.44,238.43,0.06]
[1757923244001,0.71,238.47,238.43,0.06]
[1757923244207,0.03,238.47,238.43,4.93395259]
[1757923244434,0.03,238.47,238.43,15.41921031]
[1757923246327,0.03,238.47,238.43,14.73921031]
[1757923246532,0.03,238.47,238.44,0.68]
[1757923248121,0.03,238.47,238.45,4.19375131]
[1757923249012,0.03,238.47,238.46,26.68]
[1757923250099,0.03,238.47,238.46,30.87357544]
[1757923250707,0.03,238.47,238.46,30.19357544]
[1757923250910,0.03,238.47,238.46,4.19357544]
[1757923251307,0.03,238.47,238.46,4.87357544]
[1757923251518,0.03,238.47,238.46,4.19357544]
[1757923252442,0.03,238.47,238.43,36.54525772]
[1757923252606,0.71,238.47,238.44,4.19375279]
[1757923253127,0.03,238.47,238.44,4.19375279]
[1757923253534,0.03,238.47,238.44,15.35857077]
[1757923253716,0.03,238.47,238.45,0.68]
[1757923254108,0.03,238.47,238.46,33.72]
[1757923254636,0.03,238.47,238.46,38.59357544]
[1757923255211,0.03,238.47,238.46,4.87357544]
[1757923255510,0.03,238.47,238.46,38.59357544]
[1757923257126,0.03,238.47,238.46,4.87357544]
[1757923257509,0.03,238.47,238.46,38.59357544]
[1757923258438,0.03,238.47,238.46,4.19357544]
[1757923258602,0.03,238.47,238.46,37.91357544]
[1757923258804,0.03,238.47,238.46,38.59357544]
[1757923259004,0.03,238.47,238.46,4.19357544]
[1757923259233,0.03,238.47,238.46,37.89357544]
[1757923259829,0.03,238.47,238.46,38.57357544]
[1757923260726,0.03,238.47,238.43,0.74]
[1757923260919,0.71,238.47,238.44,33.7]
[1757923261730,0.03,238.47,238.45,33.7]
[1757923262143,0.71,238.47,238.45,33.7]
[1757923262718,0.03,238.47,238.45,33.7]
[1757923262951,0.03,238.47,238.45,34.4]
[1757923263230,0.03,238.47,238.45,33.7]
[1757923264020,0.03,238.47,238.46,4.19357544]
[1757923264226,0.68,238.46,238.45,33.68]
[1757923264918,0.68,238.46,238.44,4.19378106]
[1757923265112,0.03,238.47,238.43,33.74]
[1757923265113,0.68,238.45,238.43,33.74]
[1757923265341,0.68,238.44,238.43,37.9340444]
[1757923265846,0.68,238.44,238.43,4.2540444]
[1757923266024,0.03,238.47,238.43,4.2540444]
[1757923266224,0.68,238.46,238.43,4.2540444]
[1757923266533,0.68,238.45,238.43,4.2540444]
[1757923267715,0.03,238.47,238.44,33.68]
[1757923267944,0.71,238.47,238.44,33.68]
[1757923268250,0.71,238.47,238.44,33.74]
[1757923268419,0.03,238.47,238.44,33.74]
[1757923268825,0.69,238.47,238.44,33.74]
[1757923269227,0.69,238.47,238.45,4.19375131]
[1757923269422,0.03,238.47,238.45,4.19375131]
[1757923269716,0.03,238.47,238.46,34.34]
[1757923271028,0.03,238.47,238.46,38.53357544]
[1757923273431,0.03,238.5,238.48,26.0]
[1757923273737,0.03,238.5,238.49,33.66]
[1757923273933,0.03,238.5,238.49,34.32]
[1757923274848,0.03,238.5,238.44,0.06]
[1757923274849,13.59559401,238.49,238.44,0.06]
[1757923275062,0.66,238.48,238.44,0.06]
[1757923275729,4.8533152,238.48,238.44,0.06]
[1757923276048,0.66,238.48,238.44,0.06]
[1757923276251,13.59559401,238.49,238.44,0.06]
[1757923276252,0.69,238.5,238.44,4.25389761]
[1757923276560,0.66,238.49,238.44,33.7]
[1757923276766,14.25559401,238.48,238.44,0.06]
[1757923277572,0.66,238.47,238.44,0.06]
[1757923278538,13.59559401,238.46,238.44,0.06]
[1757923278739,14.25559401,238.45,238.44,0.06]
[1757923279966,18.44934532,238.45,238.44,0.06]
[1757923280152,14.25559401,238.45,238.44,0.06]
[1757923280531,18.44934532,238.45,238.44,0.06]
[1757923283659,14.25559401,238.45,238.44,0.06]
[1757923283872,13.59559401,238.45,238.44,0.06]
[1757923284173,14.25559401,238.45,238.44,0.06]
[1757923285286,14.25559401,238.45,238.43,0.06]
[1757923285287,39.59559401,238.44,238.43,0.06]
[1757923285566,39.59559401,238.42,238.41,0.06]
[1757923285943,40.25559401,238.42,238.41,0.06]
[1757923287569,47.22470536,238.42,238.41,0.06]
[1757923287746,51.41898436,238.42,238.41,0.06]
[1757923288144,54.16759734,238.42,238.41,0.06]
[1757923288357,51.41898436,238.42,238.41,0.06]
[1757923289163,84.65184382,238.42,238.39,1e-08]
[1757923289470,43.79075279,238.37,238.23,0.66]
[1757923289643,49.96275597,238.36,238.22,4.25771262]
[1757923289853,13.59559401,238.35,238.24,0.66]
[1757923290063,16.34275597,238.35,238.24,0.66]
[1757923290266,14.25559401,238.35,238.24,0.66]
[1757923291567,26.0,238.32,238.22,0.06]
[1757923291750,73.21559401,238.32,238.22,0.06]
[1757923291952,83.5834559,238.32,238.22,0.06]
[1757923292258,84.18034693,238.32,238.22,0.06]
[1757923292460,85.86367149,238.32,238.22,0.06]
[1757923294092,90.05971042,238.32,238.22,0.06]
[1757923295384,13.59559401,238.27,238.22,0.06]
[1757923295554,33.62,238.26,238.22,0.06]
[1757923295858,34.28,238.26,238.22,0.06]
[1757923296575,34.28,238.26,238.22,0.72]
[1757923296779,13.59559401,238.25,238.23,0.66]
[1757923296964,13.59559401,238.25,238.24,0.66]
[1757923298193,13.59559401,238.23,238.03,4.39793463]
[1757923298363,26.0,238.19,238.07,0.66]
[1757923298562,13.59559401,238.14,238.07,0.66]
[1757923298889,13.59559401,238.12,238.07,0.66]
[1757923299068,8.2614911,238.11,238.07,0.66]
[1757923299262,8.2614911,238.11,238.0,14.70588235]
[1757923299460,19.84478683,238.12,238.08,0.67]
[1757923299663,30.19889284,238.16,238.09,0.67]
[1757923299969,13.59559401,238.12,238.09,0.67]
[1757923300461,14.25559401,238.15,238.07,0.67]
[1757923300666,39.59559401,238.15,238.08,0.67]
[1757923300866,40.25559401,238.15,238.08,0.67]
[1757923301184,12.63184488,238.14,238.08,0.67]
[1757923301401,12.63184488,238.14,238.09,0.67]
[1757923301560,39.59559401,238.15,238.05,4.20071151]
[1757923301869,0.66,238.14,238.04,0.67]
[1757923302060,13.59559401,238.13,238.03,0.67]
[1757923302262,26.0,238.1,238.03,0.67]
[1757923302475,13.59559401,238.09,238.03,0.67]
[1757923302671,14.25559401,238.09,238.01,0.67]
[1757923302990,14.25559401,238.09,238.02,0.67]
[1757923303299,14.25559401,238.09,237.92,35.02]
[1757923303300,13.59559401,238.07,237.98,0.67]
[1757923303787,13.59559401,238.03,237.97,0.67]
[1757923304159,26.0,238.0,237.97,0.67]
[1757923304358,13.59559401,238.01,237.89,24.14]
[1757923304580,13.59559401,238.01,237.9,0.67]
[1757923304795,26.0,237.98,237.84,0.2]
[1757923304998,13.59559401,237.93,237.86,0.67]
[1757923305297,13.59559401,237.91,237.86,0.67]
[1757923305812,13.59559401,237.91,237.87,0.67]
[1757923305973,13.59559401,237.91,237.88,0.67]
[1757923306301,13.59559401,237.93,237.89,0.67]
[1757923306879,13.59559401,237.91,237.84,0.2]
[1757923307095,13.59559401,237.91,237.84,0.87]
[1757923307399,13.59559401,237.93,237.85,0.67]
[1757923307613,13.59559401,237.93,237.86,0.67]
[1757923308395,13.59559401,237.89,237.84,0.2]
[1757923308880,13.59559401,237.87,237.84,0.2]
[1757923309310,13.59559401,237.89,237.85,0.67]
[1757923309487,13.59559401,237.93,237.85,0.67]
[1757923309692,13.59559401,237.93,237.84,0.2]
[1757923310004,0.66,237.92,237.84,0.87]
[1757923310167,13.59559401,237.91,237.84,0.87]
[1757923310371,38.84237916,237.95,237.84,0.87]
[1757923310372,13.59559401,237.95,237.85,0.67]
[1757923310611,14.25559401,237.95,237.85,0.67]
[1757923310813,13.59559401,237.92,237.84,0.2]
[1757923311020,13.59559401,237.92,237.85,0.67]
[1757923311221,0.66,237.95,237.85,0.67]
[1757923311384,13.59559401,237.97,237.86,4.2041537]
[1757923311718,13.59559401,237.97,237.87,0.67]
[1757923311890,10.71126807,238.0,237.87,26.67]
[1757923312206,13.59559401,237.99,237.88,0.67]
[1757923312494,39.59559401,237.99,237.88,0.67]
[1757923312716,13.59559401,237.97,237.88,0.67]
[1757923313070,14.25559401,238.02,237.88,0.67]
[1757923313269,13.59559401,237.98,237.88,0.67]
[1757923313470,0.66,238.07,237.89,14.71268232]
[1757923313778,0.66,238.06,237.9,0.67]
[1757923313992,12.63876308,238.08,237.92,26.0]
[1757923314193,12.63876308,238.08,237.93,0.67]
[1757923314374,12.63876308,238.08,237.97,26.0]
[1757923314580,0.66,238.13,237.98,0.67]
[1757923314919,13.59559401,238.12,237.98,0.67]
[1757923315208,13.59559401,238.12,238.0,26.0]
[1757923315420,13.59559401,238.12,238.01,0.67]
[1757923315608,13.59559401,238.12,238.02,4.20132761]
[1757923315786,13.59559401,238.12,238.03,0.67]
[1757923316176,13.59559401,238.16,238.03,0.67]
[1757923316399,39.59559401,238.16,238.03,0.67]
[1757923316780,18.22020437,238.21,238.03,0.67]
[1757923316781,4.85820832,238.2,238.05,26.0]
[1757923316991,4.85820832,238.2,237.97,38.5]
[1757923316992,13.59559401,238.18,238.06,0.67]
[1757923317217,13.59559401,238.06,237.98,0.67]
[1757923317423,13.59559401,238.06,237.95,0.67]
[1757923317424,0.66,238.05,237.95,0.67]
[1757923317725,4.20097462,238.04,237.95,0.67]
[1757923318009,26.0,238.0,237.9,0.67]
[1757923318220,13.59559401,237.99,237.9,0.67]
[1757923318801,13.59559401,238.03,237.9,0.67]
[1757923319100,14.27559401,238.03,237.9,0.67]
[1757923319403,13.59559401,237.97,237.87,0.71]
[1757923319584,26.0,237.98,237.87,0.71]
[1757923319585,4.20274018,237.94,237.87,0.71]
[1757923319793,4.20274018,237.94,237.84,0.91]
[1757923319999,14.27559401,237.93,237.84,0.2]
[1757923320197,14.27559401,237.93,237.84,4.40444836]
[1757923320438,26.0,237.9,237.84,0.2]
[1757923320594,13.59559401,237.85,237.84,0.2]
[1757923321142,26.0,237.78,237.71,12.6366336]
[1757923321301,14.27559401,237.77,237.71,12.6366336]
[1757923321613,26.0,237.78,237.71,12.6366336]
[1757923321614,4.20627576,237.74,237.71,12.6366336]
[1757923322222,39.59559401,237.77,237.71,12.6366336]
[1757923322431,26.0,237.74,237.71,12.6366336]
[1757923322599,13.59559401,237.73,237.71,12.6366336]
[1757923322802,0.68,237.77,237.71,12.6366336]
[1757923322997,39.59559401,237.74,237.71,12.6366336]
[1757923323195,13.59559401,237.77,237.71,12.6366336]
[1757923323400,39.59559401,237.77,237.71,12.6366336]
[1757923323623,4.20592193,237.76,237.71,12.6366336]
[1757923323828,13.59559401,237.76,237.71,13.3466336]
[1757923324001,13.59559401,237.77,237.72,0.71]
[1757923324328,14.27559401,237.8,237.71,12.6366336]
[1757923324535,13.59559401,237.8,237.72,0.71]
[1757923324904,13.59559401,237.83,237.72,15.43320376]
[1757923325102,13.59559401,237.83,237.72,4.91662964]
[1757923325417,0.68,237.87,237.74,26.0]
[1757923325620,19.59414586,237.9,237.75,26.71]
[1757923325918,13.32782142,237.9,237.76,4.91592193]
[1757923326226,0.68,237.89,237.76,30.91592193]
[1757923326530,13.59559401,237.86,237.84,0.06]
[1757923326835,26.0,237.87,237.84,0.06]
[1757923326997,26.68,237.85,237.84,0.06]
[1757923327204,14.27559401,237.85,237.84,0.06]
[1757923327610,18.47992447,237.85,237.84,0.06]
[1757923327805,40.27559401,237.85,237.84,0.06]
[1757923328042,14.27559401,237.85,237.84,0.06]
[1757923328221,6.94632444,237.88,237.84,0.06]
[1757923328222,13.59559401,237.87,237.84,0.06]
[1757923328518,14.27559401,237.85,237.84,0.06]
[1757923328749,13.59559401,237.85,237.84,0.06]
[1757923329031,0.71,237.86,237.84,0.06]
[1757923329032,13.59559401,237.86,237.84,0.06]
[1757923329249,0.71,237.85,237.84,0.06]
[1757923329413,0.71,237.85,237.81,0.06]
[1757923329604,4.20433046,237.85,237.81,0.06]
[1757923329811,13.59559401,237.83,237.81,0.06]
[1757923330246,6.94632444,237.87,237.81,0.06]
[1757923330449,13.59559401,237.89,237.82,0.7]
[1757923330744,15.2818991,237.9,237.82,26.7]
[1757923330745,1.68630509,237.9,237.82,26.7]
[1757923330926,0.65,237.89,237.81,0.06]
[1757923331133,26.0,237.83,237.79,0.02]
[1757923331347,26.0,237.8,237.79,0.02]
[1757923331635,34.06283948,237.8,237.79,0.02]
[1757923332142,46.54191845,237.8,237.79,0.02]
[1757923332510,39.59559401,237.8,237.79,0.02]
[1757923332739,26.0,237.8,237.79,0.02]
[1757923332927,26.0,237.81,237.79,0.02]
[1757923333557,13.59559401,237.86,237.8,0.7]
[1757923333761,13.59559401,237.86,237.79,0.02]
[1757923333922,13.59559401,237.82,237.79,0.02]
[1757923334118,39.59559401,237.8,237.79,0.02]
[1757923334348,11.91597955,237.85,237.79,0.02]
[1757923334549,13.59559401,237.86,237.79,0.72]
[1757923334874,26.0,237.83,237.79,0.02]
[1757923335331,13.59559401,237.86,237.79,0.72]
[1757923335532,13.59559401,237.86,237.8,0.7]
[1757923335731,4.20433046,237.85,237.79,0.02]
[1757923335960,13.59559401,237.84,237.79,0.02]
[1757923336271,13.59559401,237.84,237.65,21.03886258]
[1757923336272,39.59559401,237.8,237.6,0.2]
[1757923336479,26.0,237.69,237.6,0.2]
[1757923336633,26.0,237.65,237.6,0.2]
[1757923336834,26.0,237.61,237.6,0.2]
[1757923337132,13.59559401,237.64,237.6,0.2]
[1757923337368,26.0,237.66,237.6,0.9]
[1757923337535,26.0,237.66,237.6,0.2]
[1757923337739,4.20786871,237.65,237.52,10.18563144]
[1757923338058,26.0,237.57,237.52,10.18563144]
[1757923338369,26.0,237.53,237.23,4.21531846]
[1757923338545,46.0,237.49,237.23,4.21531846]
[1757923338755,26.0,237.44,237.24,0.7]
[1757923338950,2.81501733,237.43,237.15,14.75859159]
[1757923339258,26.0,237.4,237.16,0.7]
[1757923339458,26.0,237.36,237.16,0.7]
[1757923339832,2.2,237.41,237.17,14.75734704]
[1757923340058,13.59559401,237.4,237.18,20.7]
[1757923340261,2.2,237.41,237.19,0.7]
[1757923340471,12.67266506,237.4,237.2,20.0]
[1757923340657,12.67266506,237.4,237.28,26.0]
[1757923340658,11.95266506,237.4,237.28,26.0]
[1757923340975,11.95266506,237.4,237.29,26.7]
[1757923341267,2.2,237.41,237.35,26.0]
[1757923341467,2.2,237.41,237.36,0.7]
[1757923341759,1.48,237.41,237.37,14.74491299]
[1757923341960,1.48,237.41,237.4,26.0]
[1757923342259,1.48,237.41,237.4,26.7]
[1757923342570,0.76,237.41,237.4,26.0]
[1757923342776,0.76,237.41,237.38,13.59559401]
[1757923342963,0.72,237.4,237.16,20.0]
[1757923343256,0.72,237.39,237.21,0.7]
[1757923343454,26.0,237.4,237.21,0.7]
[1757923343656,0.72,237.39,237.21,0.7]
[1757923343861,0.76,237.41,237.3,26.0]
[1757923344040,13.42918643,237.41,237.31,0.7]
[1757923344247,13.42918643,237.41,237.23,21.07585326]
[1757923344248,0.72,237.4,237.25,0.7]
[1757923344441,0.72,237.4,237.23,14.75361462]
[1757923344746,26.0,237.37,237.23,14.75361462]
[1757923345066,0.72,237.4,237.25,13.59559401]
[1757923345271,0.76,237.41,237.24,0.7]
[1757923345272,0.72,237.39,237.24,0.7]
[1757923345472,26.0,237.35,237.21,0.7]
[1757923345678,14.31559401,237.34,237.14,4.21691827]
[1757923345847,26.0,237.3,237.15,0.7]
[1757923346173,26.0,237.3,237.06,0.7]
[1757923346174,26.0,237.21,237.06,0.7]
[1757923346333,0.72,237.2,237.02,0.7]
[1757923346538,13.59559401,237.19,237.02,0.7]
[1757923346852,0.72,237.18,237.02,0.7]
[1757923347058,0.72,237.23,237.02,0.7]
[1757923347355,20.0,237.36,237.02,0.7]
[1757923347356,26.0,237.28,237.04,13.59559401]
[1757923347661,26.0,237.28,236.98,35.86800573]
[1757923347662,26.0,237.19,237.01,0.7]
[1757923347864,26.0,237.19,236.98,14.76917883]
[1757923348064,0.72,237.18,236.99,0.7]
[1757923348285,0.72,237.23,237.01,20.0]
[1757923348573,13.59559401,237.17,237.02,0.7]
[1757923348775,26.0,237.14,236.98,14.76917883]
[1757923348937,0.72,237.13,236.98,14.76917883]
[1757923349132,0.72,237.17,236.99,0.7]
[1757923349369,13.59559401,237.16,236.99,0.7]
[1757923349537,13.59559401,237.12,236.98,4.21976538]
[1757923349738,26.0,237.09,236.94,21.09145922]
[1757923349953,0.72,237.08,236.94,25.31185795]
[1757923350153,26.0,237.2,236.95,0.7]
[1757923350399,12.68311244,237.12,237.03,26.0]
[1757923350699,0.72,237.11,236.98,26.0]
[1757923350999,26.0,237.05,236.94,10.54026483]
[1757923351292,0.72,237.04,236.94,10.54026483]
[1757923351493,13.59559401,237.02,236.94,10.54026483]
[1757923351658,0.72,237.01,236.94,10.54026483]
[1757923351863,0.72,237.08,236.97,26.0]
[1757923352088,12.68847675,237.1,236.95,13.59559401]
[1757923352379,0.72,237.24,237.0,20.0]
[1757923352609,0.72,237.23,237.09,0.06]
[1757923352798,0.72,237.23,237.09,0.76]
[1757923352960,0.72,237.23,237.09,0.06]
[1757923353159,13.59559401,237.22,237.09,0.06]
[1757923353356,13.59559401,237.06,236.9,4.22119037]
[1757923353599,0.72,237.05,236.92,0.7]
[1757923353898,0.72,237.11,236.95,4.92029964]
[1757923354103,20.0,237.33,237.08,13.59559401]
[1757923354393,0.72,237.32,237.23,26.0]
[1757923354594,0.72,237.31,237.15,0.7]
[1757923354762,0.72,237.33,237.16,0.7]
[1757923354969,0.72,237.32,237.16,0.7]
[1757923355174,0.72,237.32,237.07,0.06]
[1757923355378,13.59559401,237.19,237.07,0.06]
[1757923355583,13.59559401,237.15,237.07,0.06]
[1757923356090,26.0,237.11,237.07,0.06]
[1757923356386,0.72,237.19,237.07,4.27808248]
[1757923356569,14.31559401,237.18,237.07,0.06]
[1757923356769,13.59559401,237.15,237.07,0.06]
[1757923356961,0.72,237.24,237.12,26.0]
[1757923357167,0.72,237.24,237.16,26.0]
[1757923357378,0.5,237.17,237.16,26.0]
[1757923357887,0.5,237.17,237.12,14.76045883]
[1757923358084,0.72,237.16,237.03,0.7]
[1757923358308,0.72,237.16,236.99,14.29559401]
[1757923358481,26.0,237.1,236.95,0.7]
[1757923358675,13.59559401,237.08,236.89,0.71]
[1757923358876,26.0,237.05,236.85,0.71]
[1757923359098,0.66,237.04,236.88,0.71]
[1757923359301,0.66,237.04,236.89,0.71]
[1757923359490,0.66,237.04,236.74,14.78415138]
[1757923359797,0.66,237.04,236.86,0.71]
[1757923360104,0.66,237.08,236.95,14.77104874]
[1757923360309,0.66,237.14,236.98,26.0]
[1757923360601,0.66,237.13,236.98,26.0]
[1757923360793,13.59559401,237.11,236.95,14.77104874]
[1757923360992,0.66,237.1,236.95,14.77104874]
[1757923361202,0.66,237.15,236.98,26.0]
[1757923361385,0.66,237.15,236.99,0.71]
[1757923361708,13.59559401,237.14,236.98,26.0]
[1757923361898,0.66,237.13,236.99,14.76855563]
[1757923362089,0.66,237.13,236.99,40.76855563]
[1757923362296,26.0,237.06,236.88,0.71]
[1757923362485,13.59559401,237.01,236.84,0.71]
[1757923362688,0.66,237.0,236.84,0.71]
[1757923362996,0.66,237.06,236.85,26.0]
[1757923363197,13.59559401,237.04,236.84,0.71]
[1757923363409,13.59559401,237.04,236.82,35.89223882]
[1757923363410,13.59559401,236.96,236.82,4.22261633]
[1757923363606,52.08,237.1,236.73,0.71]
[1757923363607,13.59559401,236.9,236.73,0.71]
[1757923363917,0.66,236.89,236.75,26.0]
[1757923364088,0.66,236.89,236.74,14.78415138]
[1757923364420,13.59559401,236.94,236.77,26.0]
[1757923364617,0.66,236.93,236.78,0.71]
[1757923364931,0.66,236.97,236.82,26.0]
[1757923365134,0.66,237.03,236.87,26.0]
[1757923365296,0.66,237.03,236.88,0.71]
[1757923365801,13.59559401,237.02,236.82,0.71]
[1757923366002,13.59559401,236.96,236.79,14.78102959]
[1757923366197,13.59559401,236.94,236.79,14.78102959]
[1757923366438,13.59559401,236.92,236.79,4.22315131]
[1757923366927,13.59559401,236.92,236.7,0.2]
[1757923366928,13.59559401,236.86,236.7,0.2]
[1757923367140,26.0,236.87,236.71,15.49602508]
[1757923367323,78.56,236.87,236.71,15.49602508]
[1757923367518,0.66,236.86,236.71,4.22457859]
[1757923367720,0.66,236.86,236.71,4.93457859]
[1757923367925,17.81803204,236.83,236.7,0.2]
[1757923368141,26.0,236.8,236.7,0.2]
[1757923368339,14.25559401,236.82,236.7,0.2]
[1757923368541,78.56,236.83,236.7,0.2]
[1757923368542,26.0,236.75,236.7,0.2]
[1757923369145,0.66,236.74,236.7,0.2]
[1757923369315,0.66,236.73,236.7,0.2]
[1757923369512,0.66,236.73,236.69,0.08505245]
[1757923369713,26.0,236.7,236.69,0.08505245]
[1757923370245,79.58,236.7,236.69,0.08505245]
[1757923370448,26.66,236.7,236.69,0.08505245]
[1757923370752,26.0,236.67,236.41,15.51478828]
[1757923370914,26.0,236.67,236.41,14.80478828]
[1757923370915,26.66,236.66,236.41,14.80478828]
[1757923371119,0.66,236.65,236.29,0.71]
[1757923371310,20.0,236.62,236.29,0.71]
[1757923371622,2.206,236.56,236.32,20.0]
[1757923371824,0.66,236.55,236.28,14.8129338]
[1757923372117,0.66,236.54,236.34,4.23119235]
[1757923372340,26.0,236.57,236.35,0.71]
[1757923372545,0.66,236.6,236.35,0.71]
[1757923372714,26.0,236.58,236.35,0.71]
[1757923372920,0.66,236.57,236.35,0.71]
[1757923373416,0.66,236.62,236.37,26.0]
[1757923373630,5.76880765,236.53,236.27,14.23119235]
[1757923373841,5.76880765,236.53,236.28,2.21040633]
[1757923374039,5.76880765,236.63,236.36,14.23119235]
[1757923374239,6.42880765,236.62,236.39,26.0]
[1757923374445,0.66,236.69,236.43,26.0]
[1757923374665,5.76880765,236.55,236.31,14.23119235]
[1757923374838,5.76880765,236.43,236.28,2.21040633]
[1757923375159,5.76880765,236.35,236.22,4.2333418]
[1757923375364,5.76880765,236.35,236.21,0.08837413]
[1757923375365,5.76880765,236.28,236.21,0.08837413]
[1757923375523,5.76880765,236.26,236.21,0.08837413]
[1757923375722,6.42880765,236.32,236.18,0.01837413]
[1757923375955,5.76880765,236.26,236.17,22.749359]
[1757923376446,0.66,236.25,236.17,22.749359]
[1757923376652,5.76880765,236.2,236.17,22.029359]
[1757923376950,31.76880765,236.18,236.17,19.869359]
[1757923377165,31.76880765,236.18,235.88,0.205]
[1757923377166,5.76880765,236.04,235.81,0.20675]
[1757923377447,0.42401628,236.03,235.81,0.20675]
[1757923377649,5.76880765,235.96,235.81,0.20675]
[1757923377949,0.42401628,236.02,235.81,0.20675]
[1757923377950,0.42401628,235.95,235.82,0.71]
[1757923378153,5.76880765,235.91,235.69,0.42428613]
[1757923378456,5.76880765,235.91,235.75,4.24162345]
[1757923378659,5.76880765,235.89,235.59,0.42446623]
[1757923378867,5.76880765,235.95,235.66,14.23119235]
[1757923379026,26.0,235.94,235.66,14.23119235]
[1757923379226,5.76880765,235.81,235.58,35.0]
[1757923379449,0.42401628,235.8,235.58,35.0]
[1757923379766,5.76880765,235.74,235.58,35.0]
[1757923379968,5.76880765,235.61,235.58,35.0]
[1757923380263,6.19282393,235.67,235.59,0.69]
[1757923380444,5.76880765,235.64,235.58,35.0]
[1757923380645,5.76880765,235.59,235.58,35.0]
[1757923381041,6.19282393,235.63,235.58,35.0]
[1757923381362,0.42401628,235.63,235.58,35.0]
[1757923381862,5.76880765,235.59,235.58,35.0]
[1757923382171,0.42401628,235.62,235.58,9.49349324]
[1757923382473,0.42401628,235.62,235.58,9.29519324]
[1757923382657,5.76880765,235.54,235.53,0.7225914]
[1757923383166,5.76880765,235.54,235.44,0.69]
[1757923383465,5.76880765,235.5,235.41,0.1]
[1757923383690,0.42401628,235.49,235.41,0.1]
[1757923383866,0.42401628,235.52,235.41,0.1]
[1757923384242,0.42401628,235.52,235.41,4.34789976]
[1757923384462,0.42401628,235.52,235.44,26.0]
[1757923384668,0.42401628,235.57,235.45,26.69]
[1757923384881,20.72772622,235.58,235.54,26.0]
[1757923385162,12.77383918,235.83,235.68,26.0]
[1757923385370,12.77383918,235.83,235.74,26.0]
[1757923385674,12.77383918,235.83,235.56,14.23119235]
[1757923385675,6.46928727,235.82,235.56,14.23119235]
[1757923385850,0.66,235.82,235.56,14.23119235]
[1757923386038,12.77383918,235.83,235.67,14.23119235]
[1757923386239,12.77383918,235.83,235.65,14.23119235]
[1757923386439,18.58312645,235.83,235.62,14.23119235]
[1757923386664,12.77383918,235.83,235.76,14.10365098]
[1757923386866,12.77383918,235.83,235.8,14.10365098]
[1757923387038,12.77383918,235.83,235.8,13.87165098]
[1757923387242,12.77383918,235.83,235.79,13.87165098]
[1757923387475,22.99256511,236.06,235.92,13.87165098]
[1757923387664,6.78834902,236.2,235.92,13.87165098]
[1757923387976,23.49290276,236.31,235.92,13.87165098]
[1757923387977,0.66,236.27,236.06,14.82673896]